Cogmind - Beta 15 @@@ ROGUE MODE // 2025.07.17 @ 19:37:56 Player: Alex Result: Destroyed by G-34 Mercenary with Small Laser Performance ------------- Evolutions (1) 500 Regions Visited (2) 400 Robots Destroyed (28) 140 Value Destroyed (649) 649 Prototype IDs (0) 0 Alien Tech Used (0) 0 Bonus (0) 0 TOTAL SCORE: 1689 Bonus ------- None Cogmind --------- Core Integrity 0/400 Matter 231/300 Energy 99/100 System Corruption 5% Temperature Cool (6) Movement Core (250) Ox4 Location -9/Materials Parts ------- > --- POWER (2) -------- (None) > --- PROPULSION (2) --- (None) > --- UTILITY (3) ------ Medium Storage Unit > --- WEAPON (2) ------- Shotgun > --- INVENTORY (10) --- Ion Engine Light Ion Engine Light Treads Aluminum Leg Peak State ------------ > --- POWER ------------ Ion Engine Ion Engine > --- PROPULSION ------- Aluminum Leg Aluminum Leg > --- UTILITY ---------- Medium Storage Unit > --- WEAPON ----------- Light Assault Rifle Rocket Launcher > --- INVENTORY -------- Ion Engine Light Treads Aluminum Leg Assault Rifle [Rating: 8] Favorites ----------- Power Ion Engine Engine Ion Engine Propulsion Light Treads Treads Light Treads Leg Aluminum Leg Utility Medium Storage Unit Device Heat Sink Storage Medium Storage Unit Weapon Light Assault Rifle Ballistic Gun Light Assault Rifle Launcher Rocket Launcher Build | -11 -10 -9 ------- Run | Yrd Mat Mat Slots Evolved 2 | . . 2 Power 1 | . . 1 Propulsion . | . . . Utility 1 | . . 1 Weapon . | . . . Parts Attached 16 | 5 7 4 Power 3 | 1 1 1 Engine 3 | 1 1 1 Core . | . . . Reactor . | . . . Propulsion 5 | 2 3 . Treads 3 | 2 1 . Leg 2 | . 2 . Wheel . | . . . Hover . | . . . Flight . | . . . Utility 3 | . 3 . Device 1 | . 1 . Storage 2 | . 2 . Processor . | . . . Hackware . | . . . Protection . | . . . Artifact . | . . . Weapon 5 | 2 . 3 Energy Gun . | . . . Energy Cannon . | . . . Ballistic Gun 4 | 2 . 2 Ballistic Cannon . | . . . Launcher 1 | . . 1 Special Weapon . | . . . Impact Weapon . | . . . Slashing Weapon . | . . . Piercing Weapon . | . . . Special Melee Weapon . | . . . Unidentified Prototypes . | . . . Parts Lost 8 | . 1 7 Power 2 | . . 2 Propulsion 2 | . . 2 Utility 1 | . 1 . Weapon 3 | . . 3 Highest Loss Streak 6 | . 1 6 To Critical Strikes . | . . . Average Backups 1 | . 1 3 Power 1 | . 1 1 Propulsion . | . . 2 Utility . | . . . Weapon . | . . . Tool/Special . | . . . Unused Backups 2 | . . 2 Power 1 | . . 1 Propulsion 1 | . . 1 Utility . | . . . Weapon . | . . . Tool/Special . | . . . Average Slot Usage (%) 84 | . 91 56 Engine 14 | . 14 14 Treads 20 | . 25 . Leg 4 | . 1 14 Device 7 | . 9 . Storage 11 | . 11 11 Ballistic Gun 24 | . 28 11 Launcher 1 | . . 5 Peak Build Rating 8 | 5 7 8 Average Rating 6 | 3 6 5 On Entrance 3 | . 5 6 Naked Turns . | . . . Heaviest Build 25 | 8 19 25 Greatest Support 40 | 40 40 20 Greatest Overweight (x) 5 | . 5 4 Average Overweight (x) . | . . 1 Largest Inventory Capacity 10 | 5 10 10 Average Capacity 8 | 5 8 10 Most Carried 5 | 1 5 4 Average Carried 1 | . 1 3 Final Capacity 10 | 5 10 10 Final Carried 4 | 1 4 4 Class Distribution -------------------- 100% | Mutant Dominant Class ---------------- Mutant | -10/Materials Mutant | -9/Materials Resources | -11 -10 -9 ----------- Run | Yrd Mat Mat Matter Collected 565 | 250 253 62 Remotely . | . . . Salvage Created 729 | . 587 142 Parts 59 | . 47 12 Haulers Intercepted . | . . . Recyclers Shooed 1 | . 1 . Parts Field Recycled . | . . . Retrieved Matter . | . . . Parts Self-Destructed . | . . . Prevented . | . . . Kills | -11 -10 -9 ------- Run | Yrd Mat Mat Combat Hostiles Destroyed 24 | . 16 8 Guns 17 | . 16 1 AOE 7 | . . 7 Classes Destroyed 6 | . 5 1 Worker 1 | . 1 . Recycler 2 | . 1 1 Watcher 1 | . 1 . Swarmer 10 | . 6 4 Grunt 13 | . 10 3 Sentry 1 | . . 1 Best Kill Streak 6 | . 4 6 Combat Bots Only 5 | . 3 5 Max Kills in Single Turn 4 | . 2 4 Gunslinging 1 | . 1 . Exploded 4 | . . 4 Melee . | . . . Uniques/NPCs Destroyed . | . . . Combat | -11 -10 -9 -------- Run | Yrd Mat Mat Hostile Shots Fired 151 | . 74 77 Missed 52 | . 25 27 Hits 99 | . 49 50 Projectile 99 | . 49 50 Critical Strikes 2 | . . 2 Damage Taken 1750 | . 510 1240 Core 470 | . 61 409 Absorbed by Shields . | . . . Core Remaining (%) 87 | 100 75 . Volleys Fired 73 | . 54 19 Largest 2 | . 2 2 Hottest 53 | . 40 53 Shots Fired 132 | . 108 24 Gun 126 | . 108 18 Cannon . | . . . Launcher 6 | . . 6 Special . | . . . Kinetic 126 | . 108 18 Thermal . | . . . Explosive 6 | . . 6 Electromagnetic . | . . . Robot Hit Streak 13 | . 13 8 Robot Miss Streak 5 | . 5 3 Penetration Max . | . . . Secondary Targets 4 | . 4 . Max Gunslinging Chain 1 | . 1 . Shots Hit Robots 83 | . 66 17 Core Hits 49 | . 36 13 Critical Kills . | . . . Critical Parts Destroyed 1 | . . 1 Critical Strikes 1 | . . 1 Destroy 1 | . . 1 Melee Attacks . | . . . Impact . | . . . Slashing . | . . . Piercing . | . . . Sneak Attacks . | . . . Combat Hostiles . | . . . Follow-up Attacks . | . . . Damage Inflicted 1414 | . 686 728 Guns 808 | . 685 123 Cannons . | . . . Explosions 605 | . . 605 Melee . | . . . Ramming 1 | . 1 . Kinetic 808 | . 685 123 Thermal 188 | . . 188 Explosive 417 | . . 417 Electromagnetic . | . . . Impact . | . . . Slashing . | . . . Piercing . | . . . Highest Corruption 5 | . . 5 Average Corruption 5 | . . 5 Corruption Purged . | . . . Corruption Blocked . | . . . Effects 2 | . . 2 Data Loss (major) 1 | . . 1 Weapon Failures 1 | . . 1 Overload Shots . | . . . Overflow Damage 5 | . . 5 Projectiles . | . . . Explosions 5 | . . 5 Melee . | . . . Knockbacks . | . . . Impact . | . . . Kinetic . | . . . Secondary . | . . . Self-Inflicted Damage 243 | . . 243 Shots 7 | . . 7 Rammed 1 | . 1 . Targets Rammed 1 | . 1 . Kicked . | . . . Crushed . | . . . Highest Temperature 54 | . 12 54 Average Temperature 17 | . 7 24 Received Heat Transfer 438 | . 219 219 Siege Activations . | . . . Martial Activations . | . . . Shielding Activations . | . . . Robots Disrupted . | . . . Combat Hostiles . | . . . Robots Corrupted . | . . . Combat Hostiles . | . . . Parts Fried . | . . . Impact Corruptions . | . . . Robots Melted . | . . . Combat Hostiles . | . . . Parts Melted . | . . . Heat Transferred 100 | . . 100 Parts Sabotaged . | . . . Parts Stolen . | . . . Parts Stripped . | . . . Power Chain Reactions . | . . . Alert | -11 -10 -9 ------- Run | Yrd Mat Mat Maximum Alert Level . | . . . Low Security (%) 100 | 100 100 100 Level 1 . | . . . Level 2 . | . . . Level 3 . | . . . Level 4 . | . . . Level 5 . | . . . High Security . | . . . Max Security . | . . . Peak Influence 191 | . 141 191 Initial 24 | . . 24 Average 65 | . 72 60 Influence Increases 758 | . 453 305 Destroy 0b10 Robot/C 480 | . 320 160 Destroy 0b10 Robot/NC 20 | . 15 5 Destroy Leader 122 | . 92 30 Successful Hack 25 | . 11 14 Disable Machine 30 | . . 30 Destroy Structure 51 | . . 51 Lose Combat Pursuer 30 | . 15 15 Influence Decreases 597 | . 394 203 Entered New Map 35 | . . 35 Time Decay 482 | . 384 98 Lost Part 80 | . 10 70 Squads Dispatched 8 | . 6 2 Investigation 3 | . 2 1 Extermination . | . . . Reinforcement 5 | . 4 1 Assault . | . . . Garrison . | . . . Intercept . | . . . Searches Triggered . | . . . Construction Impeded 1 | . . 1 Haulers Reinforced . | . . . Active Scanning Responses . | . . . Cargo Convoy Interrupts . | . . . Stealth | -11 -10 -9 --------- Run | Yrd Mat Mat Distress Signals 3 | . 3 . Communications Jammed . | . . . Distress Signals . | . . . Times Spotted 39 | . 29 10 Peak Tracking Total 6 | . 6 5 Tactical Retreats 2 | . 1 1 Traps | -11 -10 -9 ------- Run | Yrd Mat Mat Traps Triggered 2 | . 2 . Indirectly . | . . . Trap Hack Attempts . | . . . Triggered . | . . . Disarmed . | . . . Reprogrammed . | . . . Reused . | . . . Traps Extracted . | . . . Installed . | . . . Triggered . | . . . Machines | -11 -10 -9 ---------- Run | Yrd Mat Mat Machines Disabled 2 | . . 2 Max in Single Turn 2 | . . 2 Machines Repaired . | . . . Machines Dismantled . | . . . Machines Sabotaged . | . . . Overloaded Fab Kills . | . . . Hacking | -11 -10 -9 --------- Run | Yrd Mat Mat Machines Accessed 3 | . 2 1 Terminals 3 | . 2 1 Fabricators . | . . . Repair Stations . | . . . Recycling Units . | . . . Scanalyzers . | . . . Garrison Access . | . . . Total Hacks 12 | . 10 2 Successful 6 | . 5 1 Failed 6 | . 5 1 Catastrophic 1 | . . 1 Database Lockouts . | . . . Manual 3 | . 3 . Terminals 12 | . 10 2 Fabricators . | . . . Repair Stations . | . . . Recycling Units . | . . . Scanalyzers . | . . . Garrison Access . | . . . Terminal Hacks 6 | . 5 1 Record 5 | . 5 . Robot Analysis 1 | . . 1 Fabricator Hacks . | . . . Repair Station Hacks . | . . . Recycling Unit Hacks . | . . . Scanalyzer . | . . . Garrison Access Hacks . | . . . Unauthorized Hacks . | . . . Terminals . | . . . Fabricators . | . . . Repair Stations . | . . . Recycling Units . | . . . Scanalyzers . | . . . Garrison Access . | . . . Data Cores Recovered . | . . . Used . | . . . Hacking Detections 3 | . 2 1 Full Trace Events 2 | . 1 1 Feedback Events . | . . . Feedback Blocked . | . . . Robot Schematics Acquired . | . . . Robots Built . | . . . Authchips . | . . . Time . | . . . Total Robot Build Rating . | . . . Part Schematics Acquired . | . . . Parts Built . | . . . Authchips . | . . . Time . | . . . Total Part Build Rating . | . . . Parts Repaired . | . . . Time . | . . . Parts Recycled . | . . . Recycled Matter . | . . . Retrieved Matter . | . . . Retrieved Components . | . . . Parts Scanalyzed . | . . . Part Schematics Acquired . | . . . Parts Damaged . | . . . Bothacking | -11 -10 -9 ------------ Run | Yrd Mat Mat Used RIF Installer . | . . . Robots Hacked . | . . . Non-combat . | . . . Combat . | . . . Robot Hacks Applied . | . . . Relay Couplers Released . | . . . Fabnet Peak Effective % . | . . . Robots Rewired . | . . . Allies Hacked . | . . . Hacks Repelled . | . . . Allies | -11 -10 -9 -------- Run | Yrd Mat Mat Total Allies . | . . . Largest Group . | . . . Highest-Rated Group . | . . . Highest-Rated Ally . | . . . Total Orders . | . . . Ally Attacks . | . . . Total Damage . | . . . Kills . | . . . Allies Corrupted . | . . . Allies Melted . | . . . Intel | -11 -10 -9 ------- Run | Yrd Mat Mat Active Infowar (turns) . | . . . Robot Analysis Total 1 | . . 1 Derelict Logs Recovered . | . . . Drone Launches . | . . . Drone Recoveries . | . . . Exploration | -11 -10 -9 ------------- Run | Yrd Mat Mat Turns Passed 1427 | 83 1068 276 Spaces Moved 735 | 51 569 115 Core 38 | 5 5 28 Treads 557 | 46 511 . Legs 140 | . 53 87 Wheels . | . . . Hover . | . . . Flight . | . . . Fastest Speed 50 | 50 120 190 Average Speed 163 | 149 157 198 Slowest Speed 300 | 160 300 250 Overloaded Moves . | . . . Propulsion Burnouts . | . . . Robots Hopped . | . . . Potential Cave-ins . | . . . Cave-ins Triggered 1 | . . 1 Exploration Rate (%) 33 | 5 83 11 Regions Visited 2 Branch Regions . Pre-discovered Areas . | . . . Known Exits Taken . | . . . Unknown Exits Taken 2 | 1 1 . Scrap Searched . | . . . Spaces Dug . | . . . Terrain Destroyed 68 | . . 68 Melee . | . . . Projectile . | . . . AOE 68 | . . 68 Terrain Rammed . | . . . Walls Destroyed . | . . . Machines Disabled . | . . . Actions | -11 -10 -9 --------- Run | Yrd Mat Mat Total 838 | 56 641 141 Wait 5 | . 5 . Move 733 | 50 568 115 Hop . | . . . Pick Up 3 | 1 1 1 Fast Attach 12 | 5 4 3 Attach 1 | . . 1 Detach 3 | . 2 1 Swap 3 | . 3 . Drop 4 | . 3 1 Fire 73 | . 54 19 Melee . | . . . Ram . | . . . Kick . | . . . Crush 1 | . 1 . Escape Stasis . | . . . Rewire . | . . . Trap . | . . . Miscellaneous . | . . . Route ------- -11/Scrapyard -10/Materials -9/Materials History --------- Turn | Location | Event 5 | -11/Scrapyard | Discovered new exit (range 15) 84 | -11/Scrapyard | Entered Materials 85 | -10/Materials | Met a group of wandering Federalists 329 | -10/Materials | Build established: Mutant 937 | -10/Materials | Discovered new exit (range 16) 1152 | -10/Materials | Entered another Materials area 1152 | -9/Materials | Evolved 2 slots: Power x1, Utility x1 1322 | -9/Materials | Crushed by falling debris 1354 | -9/Materials | Core integrity fell below 50% 1378 | -9/Materials | Core integrity fell below 20% 1388 | -9/Materials | Lost 6 parts (2p2n2w) 1428 | -9/Materials | Destroyed by G-34 Mercenary with Small Laser Last Messages --------------- K-01 Serf collects debris. U-05 Engineer builds a Wall. K-01 Serf collects debris. U-05 Engineer lays Concrete. K-01 Serf collects debris. U-05 Engineer lays Concrete. U-05 Engineer builds a Wall. U-05 Engineer lays Concrete. K-01 Serf collects debris. Acquired Lgt. Assault Rifle. U-05 Engineer lays Concrete. Lgt. Assault Rifle destroyed. U-05 Engineer lays Concrete. K-01 Serf collects debris. U-05 Engineer lays Concrete. U-05 Engineer builds a Wall. U-05 Engineer lays Concrete. K-01 Serf collects debris. System corrupted: Shotgun jammed. U-05 Engineer lays Concrete. Map ----- +----------------------------------------------------+ | ????????????????????????????????????? | | ????????????????????????????????????? | | ????????????????????????????????????? | | ????????????????????????????????????? | | ????????????????????????????????????? | | ????????????????????????????????????? | | ????????????????????????????????????? | | ????????????????????????????????????? | | ????????????????????????????????????? | | ????????????????????????????????????? | | ?????####?##????????????????????????? | | ???### ## ##??????###??????????????? | | ?###"";;""" ##????? ???????????????? | | ?# " #???? ????????????????? | | ?# " #??? ?????????????????? | | ?# " #??? ??????????????????? | | ?# ### #??????????????????? | | ?# "### #??????????????????? | | ?# # #??????????????????? | | ?# #!##????????????????????? | | ?# #a##????????????????????? | | ?# u [ ## ###???????????????????? | | ?#;;;;; k## ##??????????????????? | | ?### ; uu ######## """??????? | | ??# ; g* k+ """??????? | | ??#### @* = ######## """??????? | | ?????### # ! ##??????????????????? | | ?# ##+####??????????????????? | | ?# = #??????????????????? | | ?# #??????????????????? | | ?# ==! # #??????????????????? | | ?# =!! # "" !#??????????????????? | | ?# =!! # S"" #??????????????????? | | ?# # "" #??????????????????? | | ?# ######+#??????????????????? | | ?############# #??????????????????? | | ???# # #??????????????????? | | ???# """"" # #??????????????????? | | ???# ""T"" # #??????????????????? | | ???# + #??????????????????? | | ???# # #??????????????????? | | ???# # #??????????????????? | | ???# # #??????????????????? | | ???# # #??????????????????? | | ???########### #??????????????????? | | ???# # #??????????????????? | | ???# """ """ # #??????????????????? | | ???# """ """ # #??????????????????? | | ???# """ """ + #??????????????????? | | ???# # #??????????????????? | +----------------------------------------------------+ Best States ------------- Heat Dissipation 35 Energy Generation 15 Energy Capacity 400 Matter Stores 300 Matter Capacity 300 Sight Range 16 Terrain Scan Density 10 Evasion (%) 55 Recoil Reduction 2 Item Schematics ----------------- None Robot Schematics ------------------ None Fabricated ------------ Nothing Repaired ---------- Nothing Alien Tech Used ----------------- None Achievements -------------- None Challenges ------------ None Game ------ Seed CompactSpreadCharge Manual? 0 Play Time 00:13:47 Cumulative 4.6 hours Start 2025.07.17 @ 19:24:54 End 2025.07.17 @ 19:37:56 Sessions 1 Manual Loads 0 Difficulty Rogue Special Mode None Game No. 6 Rogue 1 Adventurer 5 Explorer 0 Win Type - Total 0 Types 0/0/0/0/0/0/0/0/0/0 Lore% 8 Gallery% 6 Achievement% 8 Wizard Run 0 Options --------- Layout 0 ASCII 0 Keyboard 1 Movement Arrows Keybinds 0 Fullscreen 1 Font 18/SmallcapsGlow Map View 76x50 Zoom Use 0% Tactical HUD 0 Map Filters NONE Filters NONE Steam 1 RUN: 58b92516-7a0e-433a-9519-ad50d79e4367